fUST/lending_fUST_20240405
["ID","MTS","AMOUNT","RATE_DAILY","PERIOD"]
[321516477,1712281849314,-2998.55,0.00047671,5]
[321516478,1712281849323,-542.67,0.00047671,5]
[321516479,1712281849332,-1336.28,0.00047671,5]
[321516480,1712281849341,-1000.73639638,0.00047671,5]
[321516481,1712281849351,-500.0,0.00047671,5]
[321516482,1712281849361,-1163.43,0.00047671,5]
[321516483,1712281849373,-517.94045998,0.00047671,5]
[321516484,1712281849382,-500.0,0.00047671,5]
[321516485,1712281849391,-5975.55,0.00047671,5]
[321516486,1712281849400,-590.12545524,0.00047671,5]
[321516487,1712281849410,-500.0,0.00047671,5]
[321516488,1712281849419,-500.0,0.00047671,5]
[321516489,1712281849429,-500.0,0.00047671,5]
[321516490,1712281849438,-2114.82,0.00047671,5]
[321516491,1712281849448,-500.0,0.00047671,5]
[321516492,1712281849457,-576.09,0.00047671,5]
[321516493,1712281849468,-721.82,0.00047671,5]
[321516494,1712281849478,-2225.38,0.00047689,7]
[321516495,1712281849487,-104052.13320832,0.0004769,120]
[321516496,1712281849496,-2225.36,0.00047944,7]
[321516497,1712281849507,-500.0,0.00047945,5]
[321516498,1712281849516,-550.90118754,0.00047945,5]
[321516499,1712281849526,-484.19130491,0.00047945,5]
[321516500,1712281849535,-500.0,0.00047945,5]
[321516501,1712281849545,-500.0,0.00047945,5]
[321516502,1712281849554,-500.0,0.00047945,5]
[321516503,1712281849564,-500.0,0.00047945,5]
[321516504,1712281849574,-500.0,0.00047945,5]
[321516505,1712281849584,-500.0,0.00047945,5]
[321516506,1712281849593,-500.0,0.00047945,5]
[321516507,1712281849603,-500.0,0.00047945,5]
[321516508,1712281849612,-500.0,0.00047945,5]
[321516509,1712281849625,-521.55,0.00047945,5]
[321516510,1712281849635,-1153.11,0.00047945,5]
[321516511,1712281849644,-519.93809434,0.00047945,5]
[321516512,1712281849654,-500.0,0.00047945,5]
[321516513,1712281849663,-500.0,0.00047945,5]
[321516514,1712281849673,-1024.0,0.00047945,5]
[321516515,1712281849682,-513.9990929,0.00047945,5]
[321516516,1712281849691,-500.0,0.00047945,5]
[321516517,1712281849700,-5702.52,0.00047945,5]
[321516518,1712281849710,-157.16677907,0.00047945,5]
[321516519,1712281849720,-1046.84,0.00047945,5]
[321516520,1712281849729,-500.0,0.00047945,5]
[321516521,1712281849740,-628.45287259,0.00047945,5]
[321516522,1712281849749,-500.0,0.00047945,5]
[321516523,1712281849758,-500.0,0.00047945,5]
[321516524,1712281849767,-7041.83,0.00047945,5]
[321516525,1712281849776,-620.32,0.00047945,5]
[321516526,1712281849786,-16733.95,0.00047945,5]
[321516527,1712281849796,-787.26,0.00047945,5]
[321516528,1712281849805,-2754.87,0.00047945,5]
[321516529,1712281849814,-500.0,0.00047945,5]
[321516530,1712281849823,-500.0,0.00047945,5]
[321516531,1712281849832,-500.0,0.00047945,5]
[321516532,1712281849842,-5023.03,0.00047945,5]
[321516533,1712281849851,-7776.56,0.00047945,5]
[321516534,1712281849860,-500.0,0.00047945,5]
[321516535,1712281849872,-500.0,0.00047945,5]
[321516536,1712281849882,-3779.98,0.00047945,7]
[321516537,1712281849891,-685.55,0.00047945,5]
[321516538,1712281849900,-500.0,0.00047945,5]
[321516539,1712281849910,-500.0,0.00047945,5]
[321516540,1712281849919,-647.16,0.00047945,5]
[321516541,1712281849929,-546.28,0.00047945,5]
[321516542,1712281849938,-1258.29,0.00047945,5]
[321516543,1712281849947,-555.32,0.00047945,5]
[321516544,1712281849957,-500.0,0.00047945,5]
[321516545,1712281849966,-500.0,0.00047945,5]
[321516546,1712281849975,-15513.61,0.00047945,5]
[321516547,1712281849984,-524.85007803,0.00047945,5]
[321516548,1712281849994,-736.17,0.00047945,5]
[321516549,1712281850003,-2998.55,0.00047945,5]
[321516550,1712281850012,-542.67,0.00047945,5]
[321516551,1712281850021,-1336.28,0.00047945,5]
[321516552,1712281850031,-500.0,0.00047945,5]
[321516553,1712281850041,-1163.43,0.00047945,5]
[321516554,1712281850050,-500.0,0.00047945,5]
[321516555,1712281850059,-5975.55,0.00047945,5]
[321516556,1712281850069,-500.0,0.00047945,5]
[321516557,1712281850078,-391.61129529,0.00047945,5]
[321516558,1712281850087,-500.0,0.00047945,5]
[321516559,1712281850097,-2114.82,0.00047945,5]
[321516560,1712281850107,-500.0,0.00047945,5]
[321516561,1712281850116,-576.09,0.00047945,5]
[321516562,1712281850127,-1199.02,0.00048,2]
[321516563,1712281850136,-2739.33346428,0.00048,30]
[321516564,1712281850146,-1330.28641429,0.00048,30]
[321516565,1712281850159,-16469.55449134,0.00048,30]
[321516566,1712281850169,-797.73249354,0.00048,30]
[321516567,1712281850179,-410.49862294,0.00048017,4]
[321516568,1712281850191,-500.0,0.00048219,5]
[321516569,1712281850200,-500.0,0.00048219,5]
[321516570,1712281850210,-500.0,0.00048219,5]
[321516571,1712281850219,-500.0,0.00048219,5]
[321516572,1712281850230,-500.0,0.00048219,5]
[321516573,1712281850239,-500.0,0.00048219,5]
[321516574,1712281850248,-165.06022657,0.00048219,5]
[321516575,1712281850258,-500.0,0.00048219,5]
[321516576,1712281850268,-500.0,0.00048219,5]
[321516577,1712281850279,-500.0,0.00048219,5]
[321516578,1712281850291,-521.55,0.00048219,5]
[321516579,1712281850300,-1153.11,0.00048219,5]
[321516580,1712281850309,-500.0,0.00048219,5]
[321516581,1712281850319,-354.70429152,0.00048219,5]
[321516582,1712281850328,-1024.0,0.00048219,5]
[321516583,1712281850337,-500.0,0.00048219,5]
[321516584,1712281850348,-5702.52,0.00048219,5]
[321516585,1712281850358,-1046.84,0.00048219,5]
[321516586,1712281850367,-500.0,0.00048219,5]
[321516587,1712281850378,-500.0,0.00048219,5]
[321516588,1712281850387,-500.0,0.00048219,5]
[321516589,1712281850396,-7041.83,0.00048219,5]
[321516590,1712281850406,-620.32,0.00048219,5]
[321516591,1712281850415,-16733.95,0.00048219,5]
[321516592,1712281850424,-787.26,0.00048219,5]
[321516593,1712281850435,-2754.87,0.00048219,5]
[321516594,1712281850444,-500.0,0.00048219,5]
[321516595,1712281850453,-500.0,0.00048219,5]
[321516596,1712281850463,-500.0,0.00048219,5]
[321516597,1712281850472,-7776.56,0.00048219,5]
[321516598,1712281850481,-5023.03,0.00048219,5]
[321516599,1712281850491,-500.0,0.00048219,5]
[321516600,1712281850500,-500.0,0.00048219,5]
[321516601,1712281850509,-3779.98,0.00048219,7]
[321516602,1712281850519,-685.55,0.00048219,5]
[321516603,1712281850528,-500.0,0.00048219,5]
[321516604,1712281850538,-500.0,0.00048219,5]
[321516605,1712281850547,-647.16,0.00048219,5]
[321516606,1712281850556,-546.28,0.00048219,5]
[321516607,1712281850566,-1258.29,0.00048219,5]
[321516608,1712281850575,-555.32,0.00048219,5]
[321516609,1712281850584,-500.0,0.00048219,5]
[321516610,1712281850594,-500.0,0.00048219,5]
[321516611,1712281850603,-15513.61,0.00048219,5]
[321516612,1712281850612,-736.17,0.00048219,5]
[321516613,1712281850622,-2998.55,0.00048219,5]
[321516614,1712281850631,-542.67,0.00048219,5]
[321516615,1712281850641,-1336.28,0.00048219,5]
[321516616,1712281850650,-500.0,0.00048219,5]
[321516617,1712281850659,-1163.43,0.00048219,5]
[321516618,1712281850668,-500.0,0.00048219,5]
[321516619,1712281850678,-5975.55,0.00048219,5]
[321516620,1712281850687,-500.0,0.00048219,5]
[321516621,1712281850696,-500.0,0.00048219,5]
[321516622,1712281850705,-2114.82,0.00048219,5]
[321516623,1712281850715,-500.0,0.00048219,5]
[321516624,1712281850724,-576.09,0.00048219,5]
[321516625,1712281850734,-163.58480926,0.00048314,30]
[321516626,1712281850743,-500.0,0.00048493,5]
[321516627,1712281850753,-500.0,0.00048493,5]
[321516628,1712281850762,-500.0,0.00048493,5]
[321516629,1712281850772,-500.0,0.00048493,5]
[321516630,1712281850782,-500.0,0.00048493,5]
[321516631,1712281850791,-500.0,0.00048493,5]
[321516632,1712281850800,-204.81107694,0.00048493,5]
[321516633,1712281850810,-509.65169927,0.00048493,5]
[321516634,1712281850820,-500.0,0.00048493,5]
[321516635,1712281850829,-521.55,0.00048493,5]
[321516636,1712281850839,-1153.11,0.00048493,5]
[321516637,1712281850848,-500.0,0.00048493,5]
[321516638,1712281850857,-1024.0,0.00048493,5]
[321516639,1712281850867,-500.0,0.00048493,5]
[321516640,1712281850879,-5702.52,0.00048493,5]
[321516641,1712281850889,-1046.84,0.00048493,5]
[321516642,1712281850898,-500.0,0.00048493,5]
[321516643,1712281850907,-500.0,0.00048493,5]
[321516644,1712281850916,-500.0,0.00048493,5]
[321516645,1712281850926,-7041.83,0.00048493,5]
[321516646,1712281850935,-620.32,0.00048493,5]
[321516647,1712281850944,-787.26,0.00048493,5]
[321516648,1712281850953,-16733.95,0.00048493,5]
[321516649,1712281850963,-2754.87,0.00048493,5]
[321516650,1712281850972,-500.0,0.00048493,5]
[321516651,1712281850981,-500.0,0.00048493,5]
[321516652,1712281850991,-500.0,0.00048493,5]
[321516653,1712281851000,-7776.56,0.00048493,5]
[321516654,1712281851009,-5023.03,0.00048493,5]
[321516655,1712281851018,-500.0,0.00048493,5]
[321516656,1712281851027,-500.0,0.00048493,5]
[321516657,1712281851036,-3779.98,0.00048493,7]
[321516658,1712281851046,-685.55,0.00048493,5]
[321516659,1712281851055,-500.0,0.00048493,5]
[321516660,1712281851064,-500.0,0.00048493,5]
[321516661,1712281851074,-647.16,0.00048493,5]
[321516662,1712281851083,-546.28,0.00048493,5]
[321516663,1712281851092,-1258.29,0.00048493,5]
[321516664,1712281851102,-555.32,0.00048493,5]
[321516665,1712281851111,-500.0,0.00048493,5]
[321516666,1712281851121,-500.0,0.00048493,5]
[321516667,1712281851130,-15513.61,0.00048493,5]
[321516668,1712281851140,-736.17,0.00048493,5]
[321516669,1712281851149,-2998.55,0.00048493,5]
[321516670,1712281851158,-542.67,0.00048493,5]
[321516671,1712281851168,-1336.28,0.00048493,5]
[321516672,1712281851181,-500.0,0.00048493,5]
[321516673,1712281851190,-1163.43,0.00048493,5]
[321516674,1712281851200,-500.0,0.00048493,5]
[321516675,1712281851209,-5975.55,0.00048493,5]
[321516676,1712281851219,-500.0,0.00048493,5]
[321516677,1712281851229,-500.0,0.00048493,5]
[321516678,1712281851238,-2114.82,0.00048493,5]
[321516679,1712281851247,-500.0,0.00048493,5]
[321516680,1712281851257,-576.09,0.00048493,5]
[321516681,1712281851266,-160.0,0.00048637,3]
[321516682,1712281851275,-500.0,0.00048767,5]
[321516683,1712281851284,-500.0,0.00048767,5]
[321516684,1712281851293,-500.0,0.00048767,5]
[321516685,1712281851302,-500.0,0.00048767,5]
[321516686,1712281851311,-500.0,0.00048767,5]
[321516687,1712281851321,-500.0,0.00048767,5]
[321516688,1712281851330,-500.0,0.00048767,5]
[321516689,1712281851339,-521.55,0.00048767,5]
[321516690,1712281851438,-1153.11,0.00048767,5]
[321516691,1712281851450,-500.0,0.00048767,5]
[321516692,1712281851461,-1024.0,0.00048767,5]
[321516693,1712281851473,-500.0,0.00048767,5]
[321516694,1712281851483,-5702.52,0.00048767,5]
[321516695,1712281851494,-1046.84,0.00048767,5]
[321516696,1712281851504,-500.0,0.00048767,5]
[321516697,1712281851514,-421.21091115,0.00048767,5]
[321516698,1712281851523,-500.0,0.00048767,5]
[321516699,1712281851533,-7041.83,0.00048767,5]
[321516700,1712281851543,-620.32,0.00048767,5]
[321516701,1712281851553,-787.26,0.00048767,5]
[321516702,1712281851563,-16733.95,0.00048767,5]
[321516703,1712281851574,-2754.87,0.00048767,5]
[321516704,1712281851584,-500.0,0.00048767,5]
[321516705,1712281851593,-500.0,0.00048767,5]
[321516706,1712281851603,-500.0,0.00048767,5]
[321516707,1712281851613,-7776.56,0.00048767,5]
[321516708,1712281851624,-5023.03,0.00048767,5]
[321516709,1712281851634,-500.0,0.00048767,5]
[321516710,1712281851643,-500.0,0.00048767,5]
[321516711,1712281851653,-3779.98,0.00048767,7]
[321516712,1712281851663,-685.55,0.00048767,5]
[321516713,1712281851672,-500.0,0.00048767,5]
[321516714,1712281851682,-500.0,0.00048767,5]
[321516715,1712281851691,-647.16,0.00048767,5]
[321516716,1712281851701,-546.28,0.00048767,5]
[321516717,1712281851710,-1258.29,0.00048767,5]
[321516718,1712281851719,-555.32,0.00048767,5]
[321516719,1712281851729,-500.0,0.00048767,5]
[321516720,1712281851738,-500.0,0.00048767,5]
[321516721,1712281851748,-15513.61,0.00048767,5]
[321516722,1712281851757,-736.17,0.00048767,5]
[321516723,1712281851766,-2998.55,0.00048767,5]
[321516724,1712281851775,-542.67,0.00048767,5]
[321516725,1712281851785,-1336.28,0.00048767,5]
[321516726,1712281851794,-500.0,0.00048767,5]
[321516727,1712281851804,-1163.43,0.00048767,5]
[321516728,1712281851813,-500.0,0.00048767,5]
[321516729,1712281851822,-5975.55,0.00048767,5]
[321516730,1712281851831,-500.0,0.00048767,5]
[321516731,1712281851841,-500.0,0.00048767,5]
[321516732,1712281851851,-2114.82,0.00048767,5]
[321516733,1712281851860,-500.0,0.00048767,5]
[321516734,1712281851872,-576.09,0.00048767,5]
[321516735,1712281851882,-287.232746,0.00048767,2]
[321516736,1712281851891,-10000.0,0.000488,60]
[321516737,1712281851900,-614.56,0.000488,120]
[321516738,1712281851910,-153.58575775,0.00048875,30]
[321516739,1712281851919,-165.0,0.00048904,90]
[321516740,1712281851928,-160.0,0.00048905,4]
[321516741,1712281851937,-301.35817433,0.00048997,4]
[321516742,1712281851946,-3365.06284611,0.00049,120]
[321516743,1712281851955,-7465.77033274,0.00049,30]
[321516744,1712281851965,-1086.0,0.00049,120]
[321516745,1712281851974,-2750.087381,0.00049,68]
[321516746,1712281851983,-1329.0,0.00049,30]
[321516747,1712281851993,-16468.0,0.00049,30]
[321516748,1712281852002,-797.0,0.00049,30]
[321516749,1712281852011,-500.0,0.00049041,5]
[321516750,1712281852020,-500.0,0.00049041,5]
[321516751,1712281852029,-500.0,0.00049041,5]
[321516752,1712281852038,-500.0,0.00049041,5]
[321516753,1712281852048,-500.0,0.00049041,5]
[321516754,1712281852057,-500.0,0.00049041,5]
[321516755,1712281852066,-500.0,0.00049041,5]
[321516756,1712281852075,-521.55,0.00049041,5]
[321516757,1712281852085,-1153.11,0.00049041,5]
[321516758,1712281852094,-500.0,0.00049041,5]
[321516759,1712281852103,-1024.0,0.00049041,5]
[321516760,1712281852113,-500.0,0.00049041,5]
[321516761,1712281852125,-5702.52,0.00049041,5]
[321516762,1712281852134,-1046.84,0.00049041,5]
[321516763,1712281852144,-500.0,0.00049041,5]
[321516764,1712281852153,-500.0,0.00049041,5]
[321516765,1712281852163,-7041.83,0.00049041,5]
[321516766,1712281852172,-620.32,0.00049041,5]
[321516767,1712281852182,-787.26,0.00049041,5]
[321516768,1712281852194,-16733.95,0.00049041,5]
[321516769,1712281852204,-2754.87,0.00049041,5]
[321516770,1712281852213,-500.0,0.00049041,5]
[321516771,1712281852222,-500.0,0.00049041,5]
[321516772,1712281852231,-500.0,0.00049041,5]
[321516773,1712281852240,-7776.56,0.00049041,5]
[321516774,1712281852250,-5023.03,0.00049041,5]
[321516775,1712281852259,-500.0,0.00049041,5]
[321516776,1712281852269,-500.0,0.00049041,5]
[321516777,1712281852278,-3779.98,0.00049041,7]
[321516778,1712281852287,-685.55,0.00049041,5]
[321516779,1712281852296,-500.0,0.00049041,5]
[321516780,1712281852306,-500.0,0.00049041,5]
[321516781,1712281852316,-647.16,0.00049041,5]
[321516782,1712281852325,-546.28,0.00049041,5]
[321516783,1712281852334,-1258.29,0.00049041,5]
[321516784,1712281852344,-555.32,0.00049041,5]
[321516785,1712281852355,-500.0,0.00049041,5]
[321516786,1712281852363,-375.00749507,0.00049041,5]
[321516787,1712281852374,-15513.61,0.00049041,5]
[321516788,1712281852384,-736.17,0.00049041,5]
[321516789,1712281852393,-542.67,0.00049041,5]
[321516790,1712281852402,-2998.55,0.00049041,5]
[321516791,1712281852411,-1336.28,0.00049041,5]
[321516792,1712281852420,-500.0,0.00049041,5]
[321516793,1712281852430,-1163.43,0.00049041,5]
[321516794,1712281852439,-500.0,0.00049041,5]
[321516795,1712281852449,-5975.55,0.00049041,5]
[321516796,1712281852458,-500.0,0.00049041,5]
[321516797,1712281852467,-500.0,0.00049041,5]
[321516798,1712281852477,-2114.82,0.00049041,5]
[321516799,1712281852486,-500.0,0.00049041,5]
[321516800,1712281852495,-576.09,0.00049041,5]
[321516801,1712281852504,-202.501854,0.00049041,2]
[321516802,1712281852513,-202.501854,0.00049096,2]
[321516803,1712281852523,-160.0,0.00049174,5]
[321516804,1712281852532,-188.67573088,0.000493,119]
[321516805,1712281852542,-263.93777216,0.00049313,4]
[321516806,1712281852551,-500.0,0.00049315,120]
[321516807,1712281852560,-500.0,0.00049315,120]
[321516808,1712281852569,-500.0,0.00049315,120]
[321516809,1712281852579,-500.0,0.00049315,120]
[321516810,1712281852588,-500.0,0.00049315,120]
[321516811,1712281852597,-500.0,0.00049315,120]
[321516812,1712281852606,-500.0,0.00049315,120]
[321516813,1712281852616,-521.55,0.00049315,120]
[321516814,1712281852629,-1153.11,0.00049315,120]
[321516815,1712281852638,-500.0,0.00049315,120]
[321516816,1712281852648,-1024.0,0.00049315,120]
[321516817,1712281852658,-500.0,0.00049315,120]
[321516818,1712281852669,-5702.52,0.00049315,120]
[321516819,1712281852678,-1046.84,0.00049315,120]
[321516820,1712281852688,-500.0,0.00049315,120]
[321516821,1712281852698,-500.0,0.00049315,120]
[321516822,1712281852707,-7041.83,0.00049315,120]
[321516823,1712281852716,-620.32,0.00049315,120]
[321516824,1712281852726,-787.26,0.00049315,120]
[321516825,1712281852735,-16733.95,0.00049315,90]
[321516826,1712281852744,-2754.87,0.00049315,120]
[321516827,1712281852753,-500.0,0.00049315,120]
[321516828,1712281852763,-500.0,0.00049315,120]
[321516829,1712281852772,-465.27106114,0.00049315,120]
[321516830,1712281852782,-7776.56,0.00049315,21]
[321516831,1712281852792,-5023.03,0.00049315,120]
[321516832,1712281852801,-500.0,0.00049315,120]
[321516833,1712281852810,-500.0,0.00049315,120]
[321516834,1712281852819,-3779.98,0.00049315,7]
[321516835,1712281852829,-685.55,0.00049315,120]
[321516836,1712281852838,-570.70130127,0.00049315,120]
[321516837,1712281852848,-500.0,0.00049315,120]
[321516838,1712281852857,-647.16,0.00049315,120]
[321516839,1712281852866,-546.28,0.00049315,120]
[321516840,1712281852878,-1258.29,0.00049315,120]
[321516841,1712281852887,-555.32,0.00049315,120]
[321516842,1712281852896,-500.0,0.00049315,120]
[321516843,1712281852906,-15513.61,0.00049315,120]
[321516844,1712281852915,-736.17,0.00049315,120]
[321516845,1712281852924,-542.67,0.00049315,120]
[321516846,1712281852934,-2998.55,0.00049315,120]
[321516847,1712281852943,-1336.28,0.00049315,120]
[321516848,1712281852953,-500.0,0.00049315,120]
[321516849,1712281852962,-1163.43,0.00049315,120]
[321516850,1712281852971,-222.69316384,0.00049315,120]
[321516851,1712281852980,-5975.55,0.00049315,120]
[321516852,1712281852989,-500.0,0.00049315,120]
[321516853,1712281852998,-500.0,0.00049315,120]
[321516854,1712281853006,-2114.82,0.00049315,120]
[321516855,1712281853015,-500.0,0.00049315,120]
[321516856,1712281853024,-576.09,0.00049315,120]
[321516857,1712281853033,-200.0,0.00049315,30]
[321516858,1712281853042,-160.0,0.00049442,6]
[321516859,1712281853052,-1155.95943627,0.00049497,4]
[321516860,1712281853061,-200.0,0.00049586,120]
[321516861,1712281853070,-500.0,0.00049589,120]
[321516862,1712281853079,-500.0,0.00049589,120]
[321516863,1712281853088,-500.0,0.00049589,120]
[321516864,1712281853097,-500.0,0.00049589,120]
[321516865,1712281853105,-500.0,0.00049589,120]
[321516866,1712281853114,-500.0,0.00049589,120]
[321516867,1712281853124,-500.0,0.00049589,120]
[321516868,1712281853133,-521.55,0.00049589,120]
[321516869,1712281853142,-1153.11,0.00049589,120]
[321516870,1712281853151,-500.0,0.00049589,120]
[321516871,1712281853160,-1024.0,0.00049589,120]
[321516872,1712281853170,-500.0,0.00049589,120]
[321516873,1712281853179,-5702.52,0.00049589,120]
[321516874,1712281853190,-1046.84,0.00049589,120]
[321516875,1712281853199,-500.0,0.00049589,120]
[321516876,1712281853209,-500.0,0.00049589,120]
[321516877,1712281853219,-7041.83,0.00049589,120]
[321516878,1712281853230,-620.32,0.00049589,120]
[321516879,1712281853240,-787.26,0.00049589,120]
[321516880,1712281853250,-16733.95,0.00049589,90]
[321516881,1712281853260,-2754.87,0.00049589,120]
[321516882,1712281853273,-500.0,0.00049589,120]
[321516883,1712281853282,-500.0,0.00049589,120]
[321516884,1712281853292,-7776.56,0.00049589,21]
[321516885,1712281853303,-5023.03,0.00049589,120]
[321516886,1712281853313,-500.0,0.00049589,120]
[321516887,1712281853323,-500.0,0.00049589,120]
[321516888,1712281853332,-3779.98,0.00049589,7]
[321516889,1712281853342,-685.55,0.00049589,120]
[321516890,1712281853351,-500.0,0.00049589,120]
[321516891,1712281853360,-647.16,0.00049589,120]
[321516892,1712281853369,-546.28,0.00049589,120]
[321516893,1712281853451,-1258.29,0.00049589,120]
[321516894,1712281853461,-555.32,0.00049589,120]
[321516895,1712281853469,-500.0,0.00049589,120]
[321516896,1712281853478,-15513.61,0.00049589,120]
[321516897,1712281853487,-736.17,0.00049589,120]
[321516898,1712281853496,-542.67,0.00049589,120]
[321516899,1712281853505,-2998.55,0.00049589,120]
[321516900,1712281853514,-1336.28,0.00049589,120]
[321516901,1712281853523,-500.0,0.00049589,120]
[321516902,1712281853533,-1163.43,0.00049589,120]
[321516903,1712281853542,-5975.55,0.00049589,120]
[321516904,1712281853551,-500.0,0.00049589,120]
[321516905,1712281853560,-500.0,0.00049589,120]
[321516906,1712281853569,-2114.82,0.00049589,120]
[321516907,1712281853579,-500.0,0.00049589,120]
[321516908,1712281853588,-576.09,0.00049589,120]
[321516909,1712281853597,-160.0,0.00049711,7]
[321516910,1712281853606,-907.81175973,0.00049767,30]
[321516911,1712281853615,-500.0,0.00049863,120]
[321516912,1712281853625,-500.0,0.00049863,120]
[321516913,1712281853635,-500.0,0.00049863,120]
[321516914,1712281853644,-500.0,0.00049863,120]
[321516915,1712281853653,-500.0,0.00049863,120]
[321516916,1712281853662,-500.0,0.00049863,120]
[321516917,1712281853671,-500.0,0.00049863,120]
[321516918,1712281853680,-521.55,0.00049863,120]
[321516919,1712281853689,-1153.11,0.00049863,120]
[321516920,1712281853698,-500.0,0.00049863,120]
[321516921,1712281853707,-1024.0,0.00049863,120]
[321516922,1712281853716,-500.0,0.00049863,120]
[321516923,1712281853725,-5702.52,0.00049863,120]
[321516924,1712281853734,-1046.84,0.00049863,120]
[321516925,1712281853743,-500.0,0.00049863,120]
[321516926,1712281853753,-500.0,0.00049863,120]
[321516927,1712281853762,-7041.83,0.00049863,120]
[321516928,1712281853771,-620.32,0.00049863,120]
[321516929,1712281853780,-787.26,0.00049863,120]
[321516930,1712281853790,-16733.95,0.00049863,90]
[321516931,1712281853799,-2754.87,0.00049863,120]
[321516932,1712281853807,-500.0,0.00049863,120]
[321516933,1712281853817,-500.0,0.00049863,120]
[321516934,1712281853828,-7776.56,0.00049863,21]
[321516935,1712281853837,-5023.03,0.00049863,120]
[321516936,1712281853847,-500.0,0.00049863,120]
[321516937,1712281853855,-519.8984265,0.00049863,120]
[321516938,1712281853865,-3779.98,0.00049863,7]
[321516939,1712281853875,-685.55,0.00049863,120]
[321516940,1712281853884,-500.0,0.00049863,120]
[321516941,1712281853893,-647.16,0.00049863,120]
[321516942,1712281853902,-546.28,0.00049863,120]
[321516943,1712281853910,-1258.29,0.00049863,120]
[321516944,1712281853920,-555.32,0.00049863,120]
[321516945,1712281853929,-500.0,0.00049863,120]
[321516946,1712281853938,-15513.61,0.00049863,120]
[321516947,1712281853947,-736.17,0.00049863,120]
[321516948,1712281853957,-542.67,0.00049863,120]
[321516949,1712281853966,-2998.55,0.00049863,120]
[321516950,1712281853975,-1336.28,0.00049863,120]
[321516951,1712281853983,-500.0,0.00049863,120]
[321516952,1712281853992,-1163.43,0.00049863,120]
[321516953,1712281854001,-5975.55,0.00049863,120]
[321516954,1712281854010,-500.0,0.00049863,120]
[321516955,1712281854019,-500.0,0.00049863,120]
[321516956,1712281854028,-2114.82,0.00049863,120]
[321516957,1712281854037,-500.0,0.00049863,120]
[321516958,1712281854045,-576.09,0.00049863,120]
[321516959,1712281854055,-592.10103192,0.00049889,2]
[321516960,1712281854063,-10000.0,0.000499,120]
[321516961,1712281854073,-912.0,0.0004997,35]
[321516962,1712281854082,-151.91,0.0004997,35]
[321516963,1712281854091,-160.0,0.0004998,8]
[321516964,1712281854100,-150.5,0.0004998,35]
[321516965,1712281854109,-912.0,0.0004998,35]
[321516966,1712281854118,-150.5,0.0004999,35]
[321516967,1712281854128,-156.83,0.0004999,35]
[321516968,1712281854137,-912.0,0.0004999,35]
[321516969,1712281854146,-633.79995185,0.00049999,4]
[321516970,1712281854156,-185.607509,0.00049999,120]
[321516971,1712281854165,-326535.06867617,0.0005,2]
[321516972,1712281854175,-201.16375913,0.0005,120]
[321516973,1712281854185,-657.0,0.0005,4]
[321516974,1712281854196,-229.50655306,0.0005,120]
[321516975,1712281854205,-2401.37877905,0.0005,14]
[321516976,1712281854214,-507.3216012,0.0005,10]